{"text_format":"1","workbook":"xlsx","n_sheets":2,"sheets":["Dateneingabe","Einbringungsquote (aktuell J.)"],"not_rendered":{"charts":0,"images":0,"macros":1,"external_links":0,"defined_names":2,"comments":0,"pivot_tables":0},"unopened":[],"bounds":{"document_bytes":16777216,"sheet_cells":100000,"rows_first":2000,"rows_last":500,"rows_between":2000,"halvings":0,"cell_chars":16384,"cell_head_chars":4096},"cells_cut":0,"cells_raw":0,"read":"whole","date_system":"1900"}

{"sheet":"Dateneingabe","index":0,"n_rows":23,"n_cols":3,"rows_kept":23,"cut":false,"hidden":false,"merged":[]}
[]
[]
[]
[]
["Dateneingabe"]
[]
["eingebracht vom Mann oder Verwandten des Mannes",167000]
["eingebracht von Frau oder Verwandten der Frau",60000]
["Haus Kosten",260000,"inklusive Nebenkosten - OGH 2022/06/22, 1 Ob 66/22w: "]
["Haus aktueller Wert",340000]
["Schulden für Haus",-20000]
["Verlust /Wertsteigerung  in Prozenten",{"$f":"B10/B9","v":1.3076923076923077}]
[]
["Teilungsquoten:"]
[]
["Mann",0.5]
["Frau",{"$f":"1-B16","v":0.5}]
[]
["Kennwort: gesperrt"]
[]
["Eingabefeld"]
["errechnete Ergebnisse"]
["Ergebnisfeld"]

{"sheet":"Einbringungsquote (aktuell J.)","index":1,"n_rows":66,"n_cols":2,"rows_kept":66,"cut":false,"hidden":false,"merged":[]}
[]
["Auf dieser Seite können keine Eingaben vorgenommen werden."]
["Eingaben sind nur auf dem Blatt \"Dateneingabe\" vorzunehmen."]
[]
["Aufteilung eingebrachtes Vermögen nach Wertsteigerung /Wertverlust"]
[]
["eingebracht vom Mann oder Verwandten des Mannes",{"$f":"Dateneingabe!B7","v":167000}]
["eingebracht von Frau oder Verwandten der Frau",{"$f":"Dateneingabe!B8","v":60000}]
["Haus Errichtungkosten",{"$f":"Dateneingabe!B9","v":260000}]
["Haus aktueller Wert",{"$f":"Dateneingabe!B10","v":340000}]
["Schulden für Haus",{"$f":"Dateneingabe!B11","v":-20000}]
["Wertzuwachs in Prozenten",{"$f":"Dateneingabe!B12","v":1.3076923076923077}]
[]
["Auf- oder Abwertung der eingebrachten Beträge:"]
[]
["Hyperocha",{"$f":"B10+B11","v":320000}]
["Vorwegzuteilung an Mann für eingebrachtes Vermögen",{"$f":"B7*$B$12","v":218384.61538461538}]
["Vorwegzuteilung an Frau für eingebrachtes Vermögen",{"$f":"B8*$B$12","v":78461.538461538468}]
[]
["Teilungsquoten:"]
[]
["Anteil Mann",{"$f":"QuoteMann","v":0.5}]
["Anteil Frau",{"$f":"QuoteFrau","v":0.5}]
[]
["aufzuteilen",{"$f":"B16-B17-B18","v":23153.846153846156}]
["Aufteilungsanteil Mann",{"$f":"$B$25*B22","v":11576.923076923078}]
["Aufteilungsanteil Frau",{"$f":"$B$25*B23","v":11576.923076923078}]
[]
["Mann übernimmt Haus und Schulden:"]
[]
["Ausgleichszahlung an Frau",{"$f":"B27+B18","v":90038.461538461546}]
[]
["Frau übernimmt Haus und Schulden:"]
[]
["Ausgleichszahlung an Mann",{"$f":"B27+B17","v":229961.53846153844}]
[]
["Kontrollrechnung Mann:"]
[]
["Schulden ",{"$f":"B11","v":-20000}]
["Zahlung an Frau",{"$f":"B31","v":90038.461538461546}]
["Aufteilungsanteil Mann",{"$f":"B27","v":11576.923076923078}]
["Vorwegbezug Mann",{"$f":"B17","v":218384.61538461538}]
["Summe",{"$f":"B39*-1+B40+B41+B42","v":340000}]
[]
["Kontrollrechnung Frau:"]
[]
["Schulden ",{"$f":"B11","v":-20000}]
["Zahlung an Mann",{"$f":"B35","v":229961.53846153844}]
["Aufteilungsanteil Frau",{"$f":"B27","v":11576.923076923078}]
["Vorwegbezug Frau",{"$f":"B18","v":78461.538461538468}]
["Summe",{"$f":"B47*-1+B48+B49+B50","v":340000}]
[]
["Entscheidungen:"]
[]
["mit Anklicken können die Entscheidungen im RIS aufgerufen werden"]
[]
["OGH 2024/03/05, 1 Ob 9/24s"]
["OGH 2022/06/22, 1 Ob 66/22w"]
["OGH 25.06.2019, 1 Ob 97/19z"]
["OGH 19.06.2018, 1 Ob 89/18x"]
["OGH 30.04.2018, 1 Ob 64/18w"]
["OGH 20.01.2020, 1 Ob 142/19t"]
["OGH 23.03.2021, 1 Ob 6/21w (Wertverminderung)"]
["OGH 21.04.2021, 1 Ob 35/21k (Wertminderung)"]
[]
["Kennwort Aufhebung Sperre: gesperrt"]